bitfinex/quotes_SOLUSD_20251201
["timestamp","ask_amount","ask_price","bid_price","bid_amount"]
[1764604307012,0.72,125.4,125.35,44.55895483]
[1764604307209,0.72,125.4,125.37,16.63713593]
[1764604307420,75.0,125.39,125.36,9.2]
[1764604307594,75.0,125.39,125.36,25.83713593]
[1764604307802,0.72,125.41,125.38,16.63713593]
[1764604308016,75.0,125.43,125.36,9.2]
[1764604308321,0.72,125.42,125.39,16.63713593]
[1764604308523,0.72,125.42,125.4,16.63713593]
[1764604309022,75.0,125.43,125.38,27.91513797]
[1764604309196,0.72,125.42,125.38,27.91513797]
[1764604309520,0.72,125.42,125.4,16.63713593]
[1764604309729,0.72,125.41,125.38,27.91513797]
[1764604309912,0.72,125.42,125.4,16.63713593]
[1764604310122,0.72,125.45,125.41,25.83713593]
[1764604310316,0.72,125.45,125.43,7.97257434]
[1764604310710,5.07711139,125.46,125.44,25.83713593]
[1764604310914,5.79711139,125.46,125.45,16.63713593]
[1764604311133,5.79711139,125.46,125.44,9.2]
[1764604311134,5.07711139,125.46,125.44,9.9]
[1764604311315,1e-08,125.46,125.45,16.63713593]
[1764604311501,0.72000001,125.46,125.44,16.63713593]
[1764604311698,0.72000001,125.46,125.42,24.61010362]
[1764604311699,17.35713594,125.46,125.42,24.61010362]
[1764604311902,91.63713593,125.45,125.42,9.22]
[1764604312102,75.72,125.45,125.42,25.85713593]
[1764604312318,0.72,125.45,125.42,33.8302437]
[1764604312525,0.72,125.45,125.42,25.85713593]
[1764604312921,17.35713593,125.45,125.42,9.22]
[1764604313426,0.72,125.44,125.42,9.22]
[1764604313632,0.72,125.44,125.37,16.308864]
[1764604313633,92.35713593,125.44,125.4,9.2]
[1764604313828,92.35713593,125.44,125.4,25.83713593]
[1764604314165,1e-08,125.46,125.43,16.63713593]
[1764604314432,1e-08,125.46,125.45,24.60843923]
[1764604314631,1e-08,125.46,125.45,33.80843923]
[1764604315135,1e-08,125.46,125.45,17.1713033]
[1764604315313,1e-08,125.46,125.45,25.83713593]
[1764604315641,1e-08,125.46,125.45,9.2]
[1764604315933,0.72000001,125.46,125.45,9.2]
[1764604316121,17.35713594,125.46,125.42,25.83713593]
[1764604316316,17.35713594,125.46,125.42,16.63713593]
[1764604316514,0.72,125.45,125.43,7.97257434]
[1764604316821,0.72,125.45,125.41,7.97374504]
[1764604316822,17.35713593,125.45,125.41,7.97374504]
[1764604317019,0.72,125.45,125.41,33.81088097]
[1764604317215,75.00000001,125.46,125.41,44.54549543]
[1764604317415,0.72,125.44,125.41,17.17374504]
[1764604317718,0.72,125.45,125.42,16.63713593]
[1764604317928,0.72,125.45,125.41,25.83713593]
[1764604318113,0.72,125.45,125.42,16.63713593]
[1764604318319,75.00000001,125.46,125.43,7.97257434]
[1764604318554,0.72,125.45,125.43,24.60971027]
[1764604318839,0.72,125.45,125.43,44.54114613]
[1764604319138,0.72,125.45,125.43,7.97257434]
[1764604319324,75.00000001,125.46,125.43,24.60971027]
[1764604319527,75.72000001,125.46,125.43,24.60971027]
[1764604319842,1e-08,125.46,125.45,16.63713593]
[1764604320134,1e-08,125.46,125.45,25.83713593]
[1764604320342,1e-08,125.46,125.45,34.50843923]
[1764604321251,0.72,125.56,125.48,16.308864]
[1764604321454,0.72,125.56,125.54,16.63713593]
[1764604321706,0.82,125.59,125.55,16.63713593]
[1764604321942,0.82,125.59,125.55,9.2]
[1764604322436,0.82,125.59,125.56,19.909313]
[1764604322644,75.0,125.58,125.55,9.2]
[1764604322817,75.0,125.56,125.47,0.7]
[1764604323013,75.0,125.54,125.49,16.308864]
[1764604323243,75.0,125.54,125.47,20.62508169]
[1764604323244,75.0,125.54,125.5,9.2]
[1764604323411,0.67,125.58,125.5,9.2]
[1764604323737,0.1,125.59,125.56,16.63713593]
[1764604324048,0.1,125.59,125.57,9.2]
[1764604324217,0.1,125.59,125.58,16.63713593]
[1764604324416,0.1,125.59,125.58,24.60018737]
[1764604324613,0.1,125.59,125.58,7.96305144]
[1764604325053,0.77,125.59,125.58,7.96305144]
[1764604325336,0.1,125.59,125.58,25.32018737]
[1764604325634,44.1928956,125.74,125.58,25.32018737]
[1764604325635,75.0,125.68,125.58,85.04307317]
[1764604325839,150.0,125.7,125.64,16.63713593]
[1764604326017,75.0,125.7,125.67,16.63713593]
[1764604326214,75.0,125.7,125.6,16.308864]
[1764604326215,0.67,125.69,125.61,16.308864]
[1764604326408,0.67,125.69,125.63,27.85958767]
[1764604326409,17.30713593,125.69,125.63,27.85958767]
[1764604326641,75.0,125.66,125.63,7.95988219]
[1764604327018,150.0,125.72,125.64,0.72]
[1764604327220,7.95027375,125.79,125.7,16.63713593]
[1764604327221,75.0,125.74,125.7,16.63713593]
[1764604327424,75.0,125.74,125.71,16.63713593]
[1764604327626,91.63713593,125.75,125.71,16.63713593]
[1764604327627,0.67,125.73,125.71,16.63713593]
[1764604328028,0.67,125.73,125.7,9.2]
[1764604328029,0.67,125.73,125.7,16.63713593]
[1764604328340,0.67,125.75,125.69,9.2]
[1764604328646,0.67,125.75,125.7,7.95544948]
[1764604328848,0.67,125.75,125.7,27.84407318]
[1764604329234,0.67,125.78,125.71,0.72]
[1764604329442,0.67,125.78,125.75,16.63713593]
[1764604329724,0.67,125.78,125.75,9.2]
[1764604330041,75.0,125.76,125.7,9.2]
[1764604330223,8.80994492,125.75,125.66,7.95798185]
[1764604330427,0.67,125.75,125.67,9.92]
[1764604330660,16.63713593,125.75,125.67,8.6772552]
[1764604330842,0.67,125.75,125.71,16.63713593]
[1764604331042,75.67,125.78,125.68,0.72]
[1764604331249,75.67,125.78,125.56,0.79643198]
[1764604331250,16.63713593,125.7,125.57,1.99999999]
[1764604331546,75.0,125.7,125.63,16.63713593]
[1764604331747,16.63713593,125.68,125.64,9.2]
[1764604332252,150.0,125.7,125.61,0.72]
[1764604332436,0.67,125.67,125.63,10.55764235]
[1764604332627,0.67,125.67,125.64,18.51632171]
[1764604332828,75.67,125.67,125.61,10.55764235]
[1764604333041,75.0,125.65,125.58,7.96251842]
[1764604333225,0.67,125.7,125.64,10.55764235]
[1764604333423,0.67,125.7,125.67,10.55764235]
[1764604334144,0.67,125.7,125.64,0.72]
[1764604334347,0.67,125.7,125.67,10.55764235]
[1764604334730,83.80994492,125.69,125.61,0.72]
[1764604334950,10.55764235,125.67,125.62,10.55764235]
[1764604335339,0.67,125.66,125.62,10.55764235]
[1764604335651,83.80994492,125.69,125.63,10.55764235]
[1764604335852,11.22764235,125.7,125.65,10.55764235]
[1764604336149,0.67,125.73,125.65,9.2]
[1764604336332,10.55764235,125.7,125.65,9.2]
[1764604336530,0.67,125.75,125.66,0.72]
[1764604336727,0.67,125.75,125.72,10.55764235]
[1764604336932,11.22764235,125.75,125.68,19.89123753]
[1764604337155,10.55764235,125.71,125.67,10.55764235]
[1764604337359,75.0,125.73,125.64,9.96]
[1764604337661,20.03758727,125.72,125.65,0.72]
[1764604337842,0.67,125.72,125.68,10.55764235]
[1764604338041,150.0,125.75,125.7,10.55764235]
[1764604338370,75.67,125.75,125.72,10.55764235]
[1764604338552,0.67,125.75,125.72,10.55764235]
[1764604338746,169.79764235,125.77,125.72,18.51122059]
[1764604338933,0.67,125.74,125.73,10.55764235]
[1764604339134,0.67,125.76,125.73,10.55764235]
[1764604339635,0.67,125.76,125.72,7.95357824]
[1764604339834,20.03758727,125.76,125.72,18.51180996]
[1764604340033,0.67,125.76,125.72,18.51180996]
[1764604340254,0.67,125.76,125.75,10.55764235]
[1764604340482,0.67,125.76,125.72,27.83962736]
[1764604340752,0.67,125.76,125.75,18.50992863]
[1764604341128,0.67,125.76,125.75,7.95228628]
[1764604341332,93.71994492,125.79,125.75,18.50992863]
[1764604341645,0.67,125.78,125.75,7.95228628]
[1764604341956,0.67,125.78,125.75,18.50992863]
[1764604342565,0.67,125.8,125.77,10.55764235]
[1764604342734,0.67,125.79,125.75,27.83300198]
[1764604342935,79.9317383,125.82,125.78,10.55764235]
[1764604343251,4.9317383,125.82,125.81,10.55764235]
[1764604343433,4.9317383,125.82,125.81,20.49764235]
[1764604343773,4.9317383,125.82,125.81,10.55764235]
[1764604344053,1e-08,125.82,125.81,19.22613611]
[1764604344264,0.1,125.88,125.81,29.78377846]
[1764604344472,10.55764235,125.85,125.81,27.81972816]
[1764604344646,10.55764235,125.84,125.81,27.81972816]
[1764604344851,0.1,125.88,125.83,10.55764235]
[1764604345049,0.77,125.88,125.85,10.55764235]
[1764604345267,0.77,125.88,125.87,10.55764235]
[1764604345655,0.77,125.88,125.86,10.55764235]
[1764604345949,0.77,125.88,125.85,10.55764235]
[1764604346150,8.80994492,125.87,125.8,9.22]
[1764604346376,75.0,125.86,125.81,10.55764235]
[1764604346671,75.0,125.86,125.78,7.95032026]
[1764604346672,75.0,125.81,125.78,7.95032026]
[1764604346854,75.0,125.81,125.75,30.43770178]
[1764604347177,75.0,125.81,125.75,19.88005943]
[1764604347178,0.67,125.8,125.75,19.88005943]
[1764604347387,11.22764235,125.8,125.75,30.43770178]
[1764604347672,0.67,125.8,125.76,10.55764235]
[1764604347873,75.0,125.81,125.74,7.95291872]
[1764604347874,75.0,125.78,125.74,7.95291872]
[1764604348068,75.0,125.78,125.73,7.95355126]
[1764604348069,84.22,125.78,125.73,7.95355126]
[1764604348276,10.55764235,125.76,125.72,10.55764235]
[1764604348575,20.03758727,125.77,125.72,10.55764235]
[1764604348746,11.23764235,125.76,125.72,10.55764235]
[1764604348946,0.68,125.79,125.74,10.55764235]
[1764604349156,0.68,125.79,125.76,10.55764235]
[1764604349474,11.23764235,125.79,125.74,10.55764235]
[1764604349852,0.68,125.79,125.75,10.55764235]
[1764604350068,26.208864,125.82,125.77,18.50866405]
[1764604350257,26.208864,125.82,125.78,10.55764235]
[1764604350258,0.68,125.82,125.78,10.55764235]
[1764604350572,0.68,125.82,125.8,10.55764235]
[1764604350771,0.68,125.84,125.8,10.55764235]
[1764604350974,0.68,125.84,125.81,10.55764235]
[1764604351474,0.1,125.88,125.83,10.55764235]
[1764604351674,0.1,125.88,125.87,10.55764235]
[1764604351878,0.1,125.88,125.86,19.77764235]
[1764604352080,0.1,125.88,125.86,9.22]
[1764604352081,0.78,125.88,125.86,9.22]
[1764604352280,0.78,125.88,125.86,27.72291595]
[1764604352486,0.78,125.88,125.86,9.22]
[1764604352674,75.0,125.86,125.79,17.008864]
[1764604352884,10.55764235,125.84,125.79,19.77764235]
[1764604353187,0.67,125.86,125.79,9.89]
[1764604353392,11.22764235,125.85,125.79,9.89]
[1764604353562,0.67,125.85,125.81,10.55764235]
[1764604353769,0.67,125.84,125.79,19.77764235]
[1764604353962,10.55764235,125.82,125.79,9.22]
[1764604354192,0.67,125.81,125.79,9.22]
[1764604354483,10.55764235,125.83,125.79,9.22]
[1764604354659,0.67,125.82,125.79,9.22]
[1764604354859,11.22764235,125.82,125.79,9.22]
[1764604355069,10.55764235,125.81,125.76,19.77764235]
[1764604355273,10.55764235,125.79,125.74,10.55764235]
[1764604355486,10.55764235,125.77,125.69,8.62608242]
[1764604355677,9.47994492,125.78,125.7,9.89]
[1764604355883,11.22764235,125.78,125.73,10.55764235]
[1764604356195,94.36758727,125.79,125.72,7.95386898]
[1764604356373,10.55764235,125.77,125.71,7.95457234]
[1764604356575,10.55764235,125.76,125.71,18.51221469]
[1764604356890,86.22764235,125.77,125.72,10.55764235]
[1764604357062,18.02994492,125.79,125.71,28.51161394]
[1764604357063,86.22764235,125.79,125.71,28.51161394]
[1764604357266,86.22764235,125.79,125.74,10.55764235]
[1764604357496,10.55764235,125.75,125.67,0.67]
[1764604357666,150.0,125.77,125.69,10.55764235]
[1764604358007,150.0,125.77,125.71,10.55764235]
[1764604358008,10.55764235,125.76,125.71,10.55764235]
[1764604358178,0.67,125.8,125.72,7.9541839]
[1764604358371,75.0,125.79,125.74,10.55764235]
[1764604358563,11.22764235,125.8,125.75,10.55764235]
[1764604358885,0.67,125.8,125.75,10.55764235]
[1764604359091,0.67,125.79,125.75,10.55764235]
[1764604359329,0.67,125.79,125.73,0.67]
[1764604359475,0.67,125.79,125.75,10.55764235]
[1764604359673,20.44764235,125.82,125.76,10.55764235]
[1764604359879,11.22764235,125.82,125.77,10.55764235]
[1764604360177,86.22764235,125.81,125.76,7.95165394]
[1764604360375,10.55764235,125.8,125.76,7.95165394]
[1764604360575,11.22764235,125.8,125.76,7.95165394]
[1764604360786,11.22764235,125.79,125.76,7.95165394]
[1764604360986,10.55764235,125.78,125.74,7.95291872]
[1764604361188,10.55764235,125.77,125.74,7.95291872]
[1764604361388,86.22764235,125.77,125.73,7.95339464]
[1764604361602,86.22764235,125.77,125.72,10.55764235]
[1764604361603,0.67,125.76,125.72,18.51175322]
[1764604361808,0.67,125.77,125.73,10.55764235]
[1764604362104,86.22764235,125.81,125.76,18.50922064]
[1764604362300,93.02994492,125.82,125.75,7.95213476]
[1764604362301,75.0,125.79,125.75,7.95213476]
[1764604362811,0.67,125.79,125.75,18.50977711]
[1764604363022,75.67,125.79,125.75,7.95213476]
[1764604363182,75.67,125.79,125.75,18.50977711]
[1764604363376,10.55764235,125.77,125.72,29.10494501]
[1764604363602,10.55764235,125.77,125.73,7.95335479]
[1764604364114,11.22764235,125.76,125.72,9.22]
[1764604364283,11.22764235,125.76,125.71,7.95455823]
[1764604364284,10.55764235,125.74,125.71,7.95455823]
[1764604364708,0.67,125.74,125.71,7.95455823]
[1764604365122,0.67,125.76,125.71,38.39924218]
[1764604365287,9.22,125.77,125.71,28.51159983]
[1764604365288,10.55764235,125.77,125.71,28.51159983]
[1764604365620,10.55764235,125.77,125.71,38.39924218]
[1764604365621,0.67,125.76,125.71,38.39924218]
[1764604365782,10.55764235,125.77,125.72,10.55764235]
[1764604365977,75.0,125.8,125.73,10.55764235]
[1764604366189,86.22764235,125.79,125.74,38.39285787]
[1764604366401,10.55764235,125.77,125.73,17.17328853]
[1764604366587,75.0,125.77,125.73,17.17328853]
[1764604366799,11.22764235,125.76,125.73,17.17328853]
[1764604366995,0.67,125.76,125.73,17.17328853]
[1764604367218,10.55764235,125.78,125.73,28.40093088]
[1764604367586,11.22764235,125.78,125.73,28.40093088]
[1764604367786,10.55764235,125.78,125.73,17.17328853]
[1764604367990,0.67,125.77,125.73,27.73093088]
[1764604368295,11.22764235,125.77,125.73,17.17328853]
[1764604368601,10.55764235,125.76,125.73,7.95328853]
[1764604368916,11.22764235,125.76,125.73,7.95328853]
[1764604369097,10.55764235,125.77,125.73,7.95328853]
[1764604369304,10.55764235,125.78,125.73,19.18093088]
[1764604369507,10.55764235,125.77,125.73,8.62328853]
[1764604369815,10.55764235,125.76,125.73,7.95328853]
[1764604370010,0.67,125.76,125.73,7.95328853]
[1764604370217,0.67,125.76,125.71,18.51245899]
[1764604370391,11.22764235,125.76,125.71,19.18245899]
[1764604370592,10.55764235,125.75,125.71,7.95481664]
[1764604370812,11.22764235,125.74,125.7,17.17531809]
[1764604371016,8.80994492,125.75,125.7,17.17531809]
[1764604371310,75.0,125.74,125.7,9.22]
[1764604371512,94.36758727,125.75,125.7,19.77764235]
[1764604371715,11.22764235,125.74,125.7,17.17536826]
[1764604372100,0.67,125.74,125.7,47.62163431]
[1764604372414,8.80994492,125.75,125.7,17.17538601]
[1764604372604,11.22764235,125.73,125.7,17.17538601]
[1764604372803,11.22764235,125.73,125.7,9.22]
[1764604373113,0.67,125.72,125.69,7.95592621]
[1764604373495,18.02994492,125.75,125.69,18.51356856]
[1764604373703,10.55764235,125.74,125.69,7.95592621]
[1764604374017,11.22764235,125.75,125.7,10.55764235]
[1764604374191,166.308864,125.78,125.71,38.39950059]
[1764604374395,10.55764235,125.76,125.71,38.39950059]
[1764604374923,0.67,125.75,125.71,7.95481664]
[1764604375111,150.0,125.78,125.72,10.55764235]
[1764604375296,0.67,125.78,125.72,0.67]
[1764604375496,86.22764235,125.78,125.73,10.55764235]
[1764604375702,86.22764235,125.78,125.73,19.77764235]
[1764604376010,0.67,125.77,125.71,18.51245899]
[1764604376211,0.67,125.77,125.73,18.51119361]
[1764604376417,10.55764235,125.75,125.7,17.17516374]
[1764604376822,75.67,125.79,125.73,10.55764235]
[1764604377021,11.22764235,125.79,125.74,10.55764235]
[1764604377319,11.22764235,125.79,125.73,9.22]
[1764604377320,0.67,125.78,125.73,9.22]
[1764604377616,0.67,125.78,125.74,10.55764235]
[1764604377825,11.22764235,125.81,125.74,0.67]
[1764604378023,11.22764235,125.81,125.75,10.55764235]
[1764604378024,0.67,125.81,125.75,10.55764235]
[1764604378207,0.67,125.84,125.77,27.82857596]
[1764604378513,10.55764235,125.81,125.77,7.9510217]
[1764604378716,150.67,125.85,125.8,10.55764235]
[1764604378922,0.67,125.87,125.83,10.55764235]
[1764604379110,10.55764235,125.86,125.81,19.77764235]
[1764604379318,75.0,125.84,125.77,0.67]
[1764604379500,10.55764235,125.85,125.8,10.55764235]
[1764604379701,0.67,125.85,125.81,10.55764235]
[1764604380004,150.1,125.88,125.84,10.55764235]
[1764604380005,0.77,125.88,125.84,10.55764235]
[1764604380207,0.1,125.88,125.87,18.5023472]
[1764604380606,0.1,125.88,125.87,7.94470485]
[1764604380808,0.77,125.88,125.85,7.94538344]
[1764604381013,0.77,125.88,125.7,17.76147861]
[1764604381014,8.80994492,125.85,125.81,9.22]
[1764604381206,75.0,125.84,125.78,19.87527129]
[1764604381417,75.0,125.87,125.82,10.55764235]
[1764604381617,0.77,125.88,125.79,54.0224871]
[1764604381828,75.0,125.85,125.79,28.4936231]
[1764604382030,75.0,125.83,125.8,9.22]
[1764604382239,75.0,125.85,125.79,28.4936231]
[1764604382416,10.55764235,125.82,125.79,7.94922927]
[1764604382621,10.55764235,125.81,125.78,17.17018043]
[1764604383138,11.27764235,125.8,125.76,7.9515192]
[1764604383322,0.72,125.81,125.76,27.83065406]
[1764604383528,11.27764235,125.8,125.76,7.9515192]
[1764604383709,10.55764235,125.77,125.74,9.24]
[1764604384034,75.0,125.81,125.75,11.21764235]
[1764604384219,75.72,125.83,125.76,7.95165394]
[1764604384422,0.72,125.82,125.77,10.55764235]
[1764604384613,11.27764235,125.83,125.78,19.79764235]
[1764604384820,10.55764235,125.81,125.78,9.24]
[1764604385214,0.72,125.81,125.78,9.24]
[1764604385414,11.27764235,125.84,125.78,20.45764235]
[1764604385635,9.96,125.84,125.78,20.45764235]
[1764604385928,9.96,125.84,125.78,9.24]
[1764604385929,11.27764235,125.83,125.78,9.24]
[1764604386127,85.55764235,125.86,125.78,9.9]
[1764604386342,10.55764235,125.84,125.79,27.82415136]
[1764604386734,11.27764235,125.84,125.79,27.82415136]
[1764604386941,0.72,125.87,125.8,11.21764235]
[1764604387230,10.55764235,125.84,125.81,9.24]
[1764604387431,10.55764235,125.83,125.81,9.24]
[1764604387914,11.27764235,125.83,125.81,9.24]
[1764604388327,0.72,125.83,125.81,17.18830097]
[1764604388523,10.55764235,125.84,125.81,17.18830097]
[1764604388843,11.27764235,125.83,125.81,17.18830097]
[1764604389031,10.55764235,125.84,125.81,17.18830097]
[1764604389338,10.55764235,125.83,125.81,17.18830097]
[1764604390027,0.72,125.86,125.81,17.84830097]
[1764604390233,0.82,125.88,125.83,10.55764235]
[1764604390432,0.82,125.88,125.82,0.66]
[1764604390433,0.1,125.88,125.85,10.55764235]
[1764604390856,0.1,125.88,125.86,11.21764235]
[1764604391030,0.1,125.88,125.85,0.66]
[1764604391555,0.1,125.88,125.87,10.55764235]
[1764604391726,0.1,125.88,125.87,19.77764235]
[1764604391930,0.1,125.88,125.87,20.43764235]
[1764604392145,0.1,125.88,125.87,28.3823472]
[1764604392344,0.1,125.88,125.87,9.22]
[1764604392748,0.1,125.88,125.87,17.16470485]
[1764604393078,1e-08,125.88,125.87,17.82470485]
[1764604393359,1e-08,125.88,125.87,9.22]
[1764604393528,75.0,125.86,125.78,7.95038956]
[1764604393726,10.55764235,125.81,125.77,8.61100232]
[1764604394150,75.0,125.84,125.76,17.17146356]
[1764604394151,11.27764235,125.8,125.76,17.17146356]
[1764604394359,10.55764235,125.79,125.67,1.99999999]
[1764604394529,10.55764235,125.79,125.71,17.17427751]
[1764604394530,16.51427751,125.77,125.71,17.17427751]
[1764604394734,16.51427751,125.77,125.72,9.22]
[1764604394941,0.72,125.78,125.72,9.22]
[1764604395140,16.51427751,125.77,125.72,9.22]
[1764604395353,16.51427751,125.74,125.68,8.61671546]
[1764604395650,16.51427751,125.74,125.7,9.22]
[1764604395852,16.51427751,125.73,125.7,9.22]
[1764604396237,16.51427751,125.73,125.7,17.17494413]
[1764604396567,17.23427751,125.75,125.7,17.83494413]
[1764604396730,16.51427751,125.75,125.71,0.66]
[1764604396952,16.51427751,125.72,125.7,9.22]
[1764604397167,16.51427751,125.73,125.7,9.22]
[1764604397554,17.23427751,125.73,125.7,9.22]
[1764604397773,17.23427751,125.73,125.7,17.17521801]
[1764604398256,0.72,125.76,125.7,17.17521801]
[1764604398456,17.23427751,125.77,125.71,16.51427751]
[1764604398657,17.23427751,125.77,125.72,16.51427751]
[1764604398885,16.51427751,125.81,125.75,16.51427751]
[1764604399082,16.51427751,125.78,125.75,9.22]
[1764604399259,8.80994492,125.79,125.72,9.22]
[1764604399457,9.52994492,125.79,125.72,9.22]
[1764604399654,17.23427751,125.79,125.73,16.51427751]
[1764604399859,17.23427751,125.79,125.74,16.51427751]
[1764604400175,16.51427751,125.78,125.73,27.83742941]
[1764604400378,16.51427751,125.77,125.73,27.83742941]
[1764604400589,16.51427751,125.79,125.74,17.17427751]
[1764604400898,16.51427751,125.78,125.73,67.60518571]
[1764604401097,16.51427751,125.76,125.73,67.60518571]
[1764604401258,16.51427751,125.77,125.73,67.60518571]
[1764604401459,0.72,125.79,125.73,84.11946322]
[1764604401660,17.23427751,125.79,125.73,67.60518571]
[1764604401880,17.23427751,125.79,125.73,84.77946322]
[1764604402093,16.51427751,125.8,125.74,17.17427751]
[1764604402392,16.51427751,125.79,125.75,76.81443339]
[1764604402561,17.23427751,125.79,125.75,76.81443339]
[1764604402964,17.23427751,125.78,125.75,76.81443339]
[1764604403264,16.51427751,125.8,125.75,76.81443339]
[1764604403469,0.72,125.8,125.75,76.81443339]
[1764604403858,0.72,125.8,125.75,77.47443339]
[1764604404183,0.72,125.8,125.75,37.05300198]
[1764604404184,16.51427751,125.78,125.75,37.05300198]
[1764604404392,75.72,125.8,125.75,27.83300198]
[1764604404596,16.51427751,125.78,125.75,27.83300198]
[1764604404795,0.72,125.83,125.75,27.83300198]
[1764604404978,0.72,125.83,125.76,17.17427751]
[1764604404979,17.23427751,125.82,125.76,17.17427751]
[1764604405178,0.72,125.82,125.76,9.88]
[1764604405380,16.51427751,125.81,125.76,9.88]
[1764604405580,16.51427751,125.83,125.77,0.66]
[1764604405785,16.51427751,125.83,125.78,16.51427751]
[1764604405988,17.23427751,125.83,125.79,9.22]
[1764604406283,0.72,125.87,125.82,16.51427751]
[1764604406473,17.23427751,125.87,125.83,9.22]
[1764604407079,0.72,125.86,125.83,9.22]
[1764604407274,0.72,125.86,125.81,28.47972816]
[1764604407275,16.51427751,125.84,125.81,7.94849376]
[1764604407485,75.0,125.85,125.81,7.94849376]
[1764604407682,17.23427751,125.84,125.81,7.94849376]
[1764604408000,75.0,125.86,125.81,17.82849376]
[1764604408001,16.51427751,125.86,125.81,17.82849376]
[1764604408185,17.23427752,125.88,125.83,27.81530636]
[1764604408391,17.23427752,125.88,125.84,9.22]
[1764604408784,17.23427751,125.87,125.84,9.22]
[1764604409382,16.51427752,125.88,125.84,9.22]
[1764604409692,17.23427752,125.88,125.83,37.03530636]
[1764604409885,17.23427751,125.87,125.83,27.81530636]
[1764604410080,16.51427751,125.86,125.83,17.16723039]
[1764604410802,17.23427751,125.87,125.83,17.16723039]
[1764604411004,0.72,125.87,125.83,7.94723039]
[1764604411208,17.23427751,125.87,125.83,37.03530636]
[1764604412005,17.23427751,125.87,125.83,17.16723039]
[1764604412300,1e-08,125.88,125.83,17.82723039]
[1764604412301,16.51427752,125.88,125.83,17.82723039]
[1764604412510,16.51427752,125.88,125.84,0.66]
[1764604412511,1e-08,125.88,125.84,0.66]
[1764604413104,1e-08,125.88,125.85,16.51427751]
[1764604413316,1e-08,125.88,125.86,25.71427751]
[1764604413483,1e-08,125.88,125.87,16.51427751]
[1764604413687,1e-08,125.88,125.87,0.69]
[1764604413892,1e-08,125.88,125.87,9.2]
[1764604414292,1e-08,125.88,125.87,17.14470485]
[1764604414922,1e-08,125.88,125.87,9.2]
[1764604415710,1e-08,125.88,125.87,17.14470485]
[1764604416420,1e-08,125.88,125.87,9.2]
[1764604416796,1e-08,125.88,125.87,17.14470485]
[1764604417015,1e-08,125.88,125.87,9.2]
[1764604417401,1e-08,125.88,125.86,7.9447173]
[1764604418021,1e-08,125.88,125.86,27.80805751]
[1764604418182,1e-08,125.88,125.87,0.69]
[1764604418525,1e-08,125.88,125.87,7.94470485]
[1764604419318,1e-08,125.88,125.87,8.63470485]
[1764604420088,1e-08,125.88,125.87,25.14898236]
[1764604420805,1e-08,125.88,125.87,8.63470485]
[1764604421020,1e-08,125.88,125.87,25.14898236]
[1764604421588,1e-08,125.88,125.87,8.63470485]
[1764604421802,1e-08,125.88,125.87,25.14898236]
[1764604422410,1e-08,125.88,125.87,34.32898236]
[1764604422708,1e-08,125.88,125.87,8.63470485]
[1764604422910,16.51427752,125.88,125.87,7.94470485]
[1764604423601,16.51427752,125.88,125.84,9.18]
[1764604423602,17.21427752,125.88,125.84,9.18]
[1764604423807,16.51427751,125.85,125.84,9.18]
[1764604424003,16.51427751,125.85,125.81,7.94792566]
[1764604424210,75.0,125.86,125.82,9.18]
[1764604424211,0.7,125.84,125.82,9.18]
[1764604424400,16.51427751,125.83,125.8,9.18]
[1764604424709,16.51427751,125.81,125.8,9.18]
[1764604424913,0.7,125.83,125.8,17.12912559]
[1764604425101,16.51427751,125.82,125.8,17.12912559]
[1764604425293,0.7,125.83,125.8,37.00193958]
[1764604425490,16.51427751,125.82,125.8,37.00193958]
[1764604425793,16.51427751,125.81,125.8,27.82193958]
[1764604425990,75.7,125.85,125.8,27.82193958]
[1764604426316,16.51427751,125.84,125.8,27.82193958]
[1764604426516,0.7,125.85,125.81,9.18]
[1764604426817,16.51427751,125.84,125.82,27.81751708]
[1764604427022,16.51427751,125.86,125.82,27.81751708]
[1764604427230,1e-08,125.88,125.82,27.81751708]